bitfinex/quotes_ETHUSD_20250329
["timestamp","ask_amount","ask_price","bid_price","bid_amount"]
[1743237976559,3.32733856,1888.7,1888.6,5.29475]
[1743237977948,0.8087,1889.0,1888.7,5.29456]
[1743237978150,3.32733856,1888.8,1888.7,5.84456]
[1743237979858,3.32733856,1888.8,1888.7,0.55]
[1743237981289,3.32733856,1888.8,1888.7,5.84464]
[1743237981683,3.32733856,1888.8,1888.6,5.29471]
[1743237981889,3.32733856,1888.7,1888.6,5.29471]
[1743237982483,3.32733856,1888.7,1888.5,34.37228985]
[1743237982484,8.95487242,1888.7,1888.5,29.07708985]
[1743237982690,5.29564,1888.4,1888.0,5.2965]
[1743237982986,3.32733856,1888.1,1888.0,5.2965]
[1743237983181,3.32733856,1888.1,1887.9,5.29688]
[1743237983382,3.32733856,1888.0,1887.8,33.3141]
[1743237983696,3.32733856,1887.9,1887.8,37.806209]
[1743237984213,3.32733856,1888.0,1887.9,5.29689]
[1743237984408,3.32733856,1888.0,1887.9,5.84689]
[1743237984617,3.32733856,1888.0,1887.9,5.29689]
[1743237984817,3.32733856,1888.0,1887.9,5.84689]
[1743237985005,3.32733856,1888.0,1887.8,37.256149]
[1743237985205,3.32733856,1888.1,1887.9,5.29679]
[1743237985410,3.32733856,1888.1,1888.0,5.29661]
[1743237985903,3.32733856,1888.1,1887.9,14.42370299]
[1743237986104,3.32733856,1888.0,1887.9,14.97370299]
[1743237986400,3.32733856,1888.1,1888.0,5.29657]
[1743237987379,3.32733856,1888.1,1887.9,0.55]
[1743237987581,3.32733856,1888.0,1887.9,0.55]
[1743237987790,0.40329771,1888.2,1887.9,4.04097409]
[1743237988119,0.7876,1888.4,1888.0,5.29647]
[1743237988120,3.32733856,1888.1,1888.0,5.29647]
[1743237989176,3.32733856,1888.2,1888.0,5.29647]
[1743237990897,3.32733856,1888.2,1887.9,5.84689]
[1743237991204,3.32733856,1888.0,1887.9,5.84689]
[1743237992418,3.32733856,1888.0,1887.8,34.3597909]
[1743237992573,3.32733856,1887.9,1887.8,34.9097809]
[1743237992778,3.32733856,1888.1,1887.9,5.84684]
[1743237992977,3.32733856,1888.1,1888.0,5.29646]
[1743237993981,3.32733856,1888.1,1887.9,5.84684]
[1743237995832,3.32733856,1888.1,1887.9,11.14352]
[1743237996037,0.39829104,1888.2,1887.9,5.84668]
[1743237996237,3.32733856,1888.4,1888.2,5.29587]
[1743237996533,3.32733856,1888.4,1888.3,5.29576]
[1743237997436,3.32733856,1888.4,1888.2,5.84597]
[1743237997636,3.73125883,1888.5,1888.3,5.29576]
[1743237997837,3.32733856,1888.6,1888.4,5.29548]
[1743237998223,3.32733856,1888.6,1888.4,10.59076]
[1743237998927,3.32733856,1888.6,1888.5,5.2952]
[1743237999335,3.32733856,1888.6,1888.5,5.8452]
[1743238000036,3.32733856,1888.9,1888.8,5.29436]
[1743238000239,3.32733856,1889.0,1888.9,5.29404]
[1743238001038,3.32733856,1889.0,1888.9,5.84404]
[1743238002206,3.32733856,1889.0,1888.9,6.90746312]
[1743238002535,3.32733856,1889.0,1888.9,8.12764543]
[1743238002740,9.38733856,1889.1,1889.0,5.2938]
[1743238003817,9.38733856,1889.1,1889.0,5.8438]
[1743238004612,3.32733856,1889.1,1889.0,5.8438]
[1743238005356,4.12663856,1889.1,1888.8,0.55]
[1743238005560,3.32733856,1888.9,1888.8,5.84419]
[1743238005856,3.32733856,1888.9,1888.8,9.86578577]
[1743238009644,3.32733856,1888.9,1888.8,0.55]
[1743238009953,3.32733856,1888.9,1888.7,28.02]
[1743238010127,3.32733856,1888.8,1888.7,28.02]
[1743238010521,3.32733856,1888.8,1888.7,33.31464]
[1743238013635,3.32733856,1888.8,1888.7,5.29464]
[1743238018371,3.32733856,1889.0,1888.9,5.29408]
[1743238019047,3.32733856,1889.0,1888.8,5.29426]
[1743238019370,3.32733856,1888.9,1888.8,5.84426]
[1743238021180,3.32733856,1888.9,1888.8,5.29426]
[1743238022752,3.32733856,1888.9,1888.7,5.29463]
[1743238023087,3.32733856,1888.8,1888.7,5.29463]
[1743238024890,3.32733856,1888.8,1888.6,6.91697675]
[1743238025061,3.32733856,1888.7,1888.5,5.29517]
[1743238025260,3.72924012,1888.7,1888.5,5.29517]
[1743238025960,3.32733856,1888.6,1888.5,5.29517]
[1743238026888,3.32733856,1888.6,1888.4,34.35800461]
[1743238027081,3.32733856,1888.5,1888.4,28.018]
[1743238027276,9.56474642,1888.5,1888.4,28.018]
[1743238027479,4.26954642,1888.5,1888.4,28.018]
[1743238027795,3.32733856,1888.5,1888.4,28.018]
[1743238028281,3.32733856,1888.5,1888.4,33.31348]
[1743238029289,3.32733856,1888.5,1888.4,28.018]
[1743238030462,4.12713856,1888.5,1888.4,28.018]
[1743238031001,9.42233856,1888.5,1888.4,28.018]
[1743238031301,10.89406742,1888.5,1888.4,28.018]
[1743238032380,4.12713856,1888.5,1888.4,28.018]
[1743238032700,9.42233856,1888.5,1888.4,28.018]
[1743238032901,4.12713856,1888.5,1888.4,28.018]
[1743238037606,4.12713856,1888.5,1888.3,5.29574]
[1743238038177,6.06,1888.6,1888.3,0.55]
[1743238038383,6.06,1888.6,1888.5,5.2952]
[1743238038582,6.06,1888.6,1888.5,6.63162]
[1743238039410,9.38733856,1888.6,1888.5,6.63162]
[1743238040212,9.38733856,1888.6,1888.5,6.1021]
[1743238041022,9.38733856,1888.6,1888.5,6.6521]
[1743238043518,9.38733856,1888.6,1888.5,1.3569]
[1743238043816,15.49688856,1888.6,1888.1,5.29605]
[1743238044023,3.32733856,1888.2,1888.1,5.29605]
[1743238044184,3.32733856,1888.2,1888.1,6.926716]
[1743238044384,3.32733856,1888.2,1888.1,7.476716]
[1743238051236,3.32733856,1888.2,1888.1,5.84605]
[1743238057814,6.8745,1888.6,1888.3,5.84576]
[1743238058016,3.32733856,1888.6,1888.5,5.84494]
[1743238058216,0.39059472,1888.7,1888.6,5.29492]
[1743238058486,6.06,1888.9,1888.8,5.29436]
[1743238058750,6.06,1888.9,1888.8,5.84436]
[1743238058751,3.32733856,1888.9,1888.8,5.84436]
[1743238061050,3.32733856,1888.9,1888.6,1.87704608]
[1743238061224,3.32733856,1888.7,1888.6,6.90191608]
[1743238061418,3.32733856,1888.7,1888.5,5.29506]
[1743238061648,3.32733856,1888.6,1888.5,5.84506]
[1743238061843,3.32733856,1888.6,1888.5,5.29506]
[1743238068368,3.32733856,1888.6,1888.5,5.84506]
[1743238068665,3.32733856,1888.6,1888.5,7.55844109]
[1743238070168,3.32733856,1888.6,1888.5,5.84506]
[1743238070372,3.32733856,1888.6,1888.4,16.58404094]
[1743238071076,3.32733856,1888.6,1888.5,5.2952]
[1743238071668,3.32733856,1888.6,1888.5,6.1273]
[1743238073041,3.32733856,1888.6,1888.5,5.2952]
[1743238073241,4.15293856,1888.6,1888.5,5.8452]
[1743238077386,3.32733856,1888.6,1888.5,5.8452]
[1743238082850,6.32733856,1888.8,1888.7,5.84464]
[1743238083056,6.32733856,1888.8,1888.7,6.62224]
[1743238083450,6.32733856,1888.8,1888.7,5.84464]
[1743238087178,6.32733856,1888.8,1888.7,6.88664502]
[1743238089886,3.32733856,1888.8,1888.7,6.88664502]
[1743238090092,3.32733856,1889.0,1888.9,5.29408]
[1743238090383,3.32733856,1889.1,1889.0,5.84355]
[1743238092793,3.32733856,1889.1,1889.0,6.90548938]
[1743238093885,3.32733856,1889.1,1889.0,7.68308938]
[1743238094082,3.32733856,1889.1,1889.0,8.98080632]
[1743238096101,3.32733856,1889.1,1889.0,2.35965632]
[1743238096272,3.32733856,1889.1,1888.9,5.29391]
[1743238096603,3.32733856,1889.1,1888.9,6.37265303]
[1743238097398,3.32733856,1889.1,1889.0,5.2938]
[1743238100512,3.32733856,1889.1,1888.9,6.37281303]
[1743238100719,3.32733856,1889.1,1889.0,5.2938]
[1743238101313,3.32733856,1889.1,1889.0,5.8438]
[1743238101502,3.32733856,1889.1,1889.0,7.0654613]
[1743238105085,3.32733856,1889.3,1889.2,5.84301]
[1743238106203,11.70208952,1889.7,1889.2,5.84301]
[1743238106204,3.32733856,1889.4,1889.3,5.84286]
[1743238108484,3.32733856,1889.6,1889.5,5.84238]
[1743238108699,3.32733856,1889.6,1889.3,5.29283]
[1743238108905,3.32733856,1889.4,1889.3,5.84283]
[1743238109113,3.32733856,1889.4,1889.3,7.06086345]
[1743238109281,3.32733856,1889.5,1889.4,5.84247]
[1743238109482,0.48397113,1889.7,1889.5,5.29227]
[1743238109690,3.32733856,1889.6,1889.5,10.58445]
[1743238110932,3.32733856,1889.6,1889.5,5.29218]
[1743238112889,3.32733856,1889.6,1889.4,5.84264]
[1743238113115,3.32733856,1889.5,1889.4,5.84264]
[1743238118816,3.32733856,1889.5,1889.4,0.55]
[1743238119396,3.32733856,1889.5,1889.3,5.29274]
[1743238119661,3.32733856,1889.4,1889.3,5.84274]
[1743238120818,0.8091,1889.6,1889.4,10.58514]
[1743238121019,3.32733856,1889.5,1889.4,5.29255]
[1743238123044,3.32733856,1889.5,1889.4,5.84255]
[1743238127518,3.32733856,1889.5,1889.4,7.033978]
[1743238127948,3.32733856,1889.6,1889.5,5.2923]
[1743238128649,6.65467712,1889.6,1889.5,5.2923]
[1743238128949,6.65467712,1889.6,1889.4,5.29255]
[1743238129117,3.32733856,1889.5,1889.4,5.29255]
[1743238129317,3.99280627,1889.5,1889.4,5.29255]
[1743238130050,3.99280627,1889.5,1889.3,5.8429]
[1743238130250,3.32733856,1889.4,1889.3,5.8429]
[1743238130748,4.09893856,1889.4,1889.2,28.007]
[1743238131517,3.0,1889.3,1889.2,28.007]
[1743238132235,6.32733856,1889.3,1889.2,28.007]
[1743238132541,7.56650142,1889.3,1889.2,28.007]
[1743238132737,7.56650142,1889.3,1889.0,6.37564183]
[1743238132738,6.32733856,1889.3,1889.0,6.37564183]
[1743238132957,3.32733856,1889.1,1888.8,5.2942]
[1743238133146,3.32733856,1888.9,1888.8,5.8442]
[1743238133652,3.32733856,1888.9,1888.8,5.2942]
[1743238133954,3.32733856,1888.9,1888.8,5.8442]
[1743238134151,3.32733856,1888.9,1888.8,5.2942]
[1743238135463,3.32733856,1888.9,1888.8,5.8442]
[1743238135762,3.32733856,1888.9,1888.8,6.90745513]
[1743238139771,3.32733856,1888.9,1888.8,8.12765564]
[1743238141670,3.32733856,1888.9,1888.8,6.90745513]
[1743238141862,3.32733856,1888.9,1888.8,1.61325513]
[1743238143077,3.32733856,1888.9,1888.8,6.90761513]
[1743238144876,3.32733856,1888.9,1888.8,1.61325513]
[1743238145666,3.32733856,1888.9,1888.8,6.90761513]
[1743238146176,3.32733856,1888.9,1888.8,1.61325513]
[1743238146855,3.32733856,1888.9,1888.8,6.90761513]
[1743238147880,3.32733856,1888.9,1888.8,1.61325513]
[1743238148674,3.32733856,1888.9,1888.8,6.90761513]
[1743238153593,3.32733856,1888.9,1888.8,1.61325513]
[1743238153790,7.02669406,1888.9,1888.6,28.007]
[1743238154091,9.38347856,1888.7,1888.6,28.007]
[1743238154256,12.38347856,1888.7,1888.6,28.007]
[1743238154882,11.05253558,1888.7,1888.6,28.007]
[1743238155081,12.8868717,1888.7,1888.6,28.007]
[1743238156964,14.21758782,1888.7,1888.6,28.007]
[1743238157399,5.29522,1888.5,1888.1,5.84621]
[1743238157574,3.3271117,1888.2,1888.1,6.92775305]
[1743238157984,3.3271117,1888.2,1887.9,11.00448]
[1743238158302,3.3271117,1888.0,1887.9,5.29688]
[1743238158471,3.3271117,1888.0,1887.9,5.84688]
[1743238158673,3.3271117,1888.0,1887.8,33.3129]
[1743238158985,3.3271117,1887.9,1887.8,28.016]
[1743238159175,3.3271117,1887.9,1887.8,34.36636594]
[1743238159381,3.3271117,1887.9,1887.8,34.91636594]
[1743238160175,3.3271117,1888.1,1887.9,5.84689]
[1743238160375,3.3271117,1888.1,1888.0,5.84647]
[1743238163203,3.3271117,1888.2,1888.1,6.63012]
[1743238164002,3.3271117,1888.2,1888.1,5.84632]
[1743238164370,3.0,1888.5,1888.2,0.55]
[1743238164575,3.3271117,1888.3,1888.2,5.84601]
[1743238165976,0.39081579,1888.4,1888.2,5.84601]
[1743238166182,6.3271117,1888.4,1888.3,6.60766]
[1743238167607,3.3271117,1888.4,1888.3,6.60766]
[1743238167917,3.3271117,1888.8,1888.5,5.2952]
[1743238168082,3.3271117,1888.6,1888.5,5.8452]
[1743238172594,3.3271117,1888.6,1888.4,1.061182]
[1743238172827,3.0,1888.5,1888.1,5.29627]
[1743238173127,3.3271117,1888.3,1888.0,11.67548728]
[1743238173327,3.3271117,1888.1,1888.0,7.62246601]
[1743238173633,3.3271117,1888.1,1888.0,8.17246601]
[1743238174128,3.3271117,1888.1,1888.0,2.32599601]
[1743238174311,3.3271117,1888.1,1887.9,5.29688]
[1743238176328,3.3271117,1888.1,1887.9,5.29667]
[1743238176515,3.3271117,1888.0,1887.9,5.84667]
[1743238177722,3.3271117,1888.1,1888.0,5.29649]
[1743238177921,3.3271117,1888.1,1888.0,5.881139]
[1743238178235,3.3271117,1888.2,1888.1,6.60526]
[1743238181309,3.3271117,1888.2,1888.1,7.65624297]
[1743238183139,3.3271117,1888.2,1888.1,6.89724297]
[1743238184328,3.3271117,1888.2,1888.1,11.05338317]
[1743238186458,4.1536117,1888.2,1888.1,1.05098297]
[1743238186618,4.1536117,1888.2,1888.0,33.32051]
[1743238187538,4.1536117,1888.2,1888.0,28.024]
[1743238189638,4.1536117,1888.2,1888.0,33.32059]
[1743238190437,4.1536117,1888.2,1888.0,28.024]
[1743238190928,9.4496717,1888.2,1888.0,28.024]
[1743238191645,10.96329726,1888.2,1888.0,28.024]
[1743238193949,3.3271117,1888.1,1888.0,28.024]
[1743238196062,12.4091317,1888.1,1888.0,28.024]
[1743238196469,12.4091317,1888.1,1887.8,0.55]
[1743238196769,3.3271117,1887.9,1887.8,0.55]
[1743238197541,3.3271117,1887.9,1887.8,5.84717]
[1743238197778,3.3271117,1887.9,1887.7,11.64905397]
[1743238198067,3.3271117,1887.8,1887.7,12.19905397]
[1743238199042,3.3271117,1887.8,1887.7,6.90161397]
[1743238200166,3.3271117,1887.9,1887.7,6.90161397]
[1743238200340,3.3271117,1887.9,1887.8,5.29717]
[1743238201067,3.3271117,1887.9,1887.7,1.60436397]
[1743238201269,3.3271117,1887.9,1887.7,1.05436397]
[1743238201440,3.3271117,1887.9,1887.6,5.29759]
[1743238201635,3.3271117,1887.7,1887.6,0.55]
[1743238202936,3.73690287,1887.7,1887.5,28.026]
[1743238203141,3.3271117,1887.6,1887.5,28.026]
[1743238204458,3.71813413,1887.6,1887.5,28.026]
[1743238204661,12.78666413,1887.6,1887.5,28.026]
[1743238204865,0.7708,1887.4,1887.1,5.29902]
[1743238205171,3.3271117,1887.2,1886.9,5.29969]
[1743238205380,3.3271117,1887.1,1886.9,5.29969]
[1743238205542,11.36773,1887.4,1886.9,5.29969]
[1743238205543,3.3271117,1887.2,1887.0,5.29921]
[1743238205740,3.3271117,1887.2,1887.0,6.34289235]
[1743238205980,3.3271117,1887.2,1887.0,11.64212235]
[1743238206172,3.3271117,1887.2,1887.1,5.29913]
[1743238206676,3.3271117,1887.2,1887.0,6.34289235]
[1743238207051,3.3271117,1887.2,1887.0,11.64211235]
[1743238207244,4.0979117,1887.4,1887.2,5.29874]
[1743238208077,3.3271117,1887.3,1887.2,5.29874]
[1743238208272,9.06,1887.5,1887.2,0.55]
[1743238208273,12.3871117,1887.5,1887.2,0.55]
[1743238208475,9.06,1887.5,1887.4,5.29829]
[1743238208675,9.06,1887.5,1887.4,6.66699]
[1743238208676,6.06,1887.5,1887.4,6.66699]
[1743238208976,6.06,1887.5,1887.4,7.86354]
[1743238209752,9.3871117,1887.5,1887.3,10.59696]
[1743238209957,3.3271117,1887.4,1887.3,5.84845]
[1743238213383,6.06,1887.5,1887.4,5.29829]
[1743238213582,6.06,1887.5,1887.4,5.84829]
[1743238213757,6.06,1887.5,1887.4,6.66699]
[1743238213957,0.39102243,1887.6,1887.5,5.84801]
[1743238214164,6.3271117,1887.7,1887.6,5.29773]
[1743238214560,3.3271117,1887.7,1887.6,5.29773]
[1743238215985,3.3271117,1887.8,1887.6,5.29754]
[1743238216189,3.3271117,1887.7,1887.6,5.29754]
[1743238217460,3.73009677,1887.7,1887.6,5.29754]
[1743238218593,3.0,1887.9,1887.6,5.84754]
[1743238218806,6.3271117,1887.8,1887.7,5.29724]
[1743238220288,6.72176049,1887.8,1887.7,5.29724]
[1743238222196,3.72176049,1887.8,1887.7,5.29724]
[1743238225113,6.3271117,1888.0,1887.9,5.29678]
[1743238227184,6.3271117,1888.0,1887.8,5.29714]
[1743238227514,0.7835,1887.6,1887.4,33.33323]
[1743238227691,3.3271117,1887.5,1887.4,28.035]
[1743238227897,6.3271117,1887.5,1887.4,28.035]
[1743238231118,6.7197587,1887.5,1887.4,28.035]
[1743238236893,3.392647,1887.5,1887.4,33.33329]
[1743238237115,3.392647,1887.5,1887.4,37.196461]
[1743238237924,6.7197587,1887.5,1887.4,33.33329]
[1743238238295,6.7197587,1887.5,1887.4,28.035]
[1743238238496,7.4712587,1887.5,1887.4,28.035]
[1743238241045,7.4712587,1887.5,1887.3,5.29855]
[1743238242425,6.7197587,1887.5,1887.4,5.29829]
[1743238242633,3.392647,1887.5,1887.4,6.907974]
[1743238242946,3.0,1887.5,1887.4,6.907974]
[1743238243302,3.3271117,1887.7,1887.4,6.907974]
[1743238243507,3.0,1887.6,1887.5,5.29775]
[1743238243707,1.2232161,1888.0,1887.7,5.29736]
[1743238243956,3.0,1887.8,1887.7,5.29736]
[1743238246052,3.3271117,1887.8,1887.7,5.29736]
[1743238246881,3.3271117,1887.8,1887.7,6.37820852]
[1743238248080,3.3271117,1887.8,1887.7,5.29736]
[1743238255292,6.3271117,1887.8,1887.7,5.29736]
[1743238259987,3.0,1887.7,1887.6,6.91887596]
[1743238260302,3.3271117,1887.7,1887.6,6.36887596]
[1743238260465,7.44752287,1887.7,1887.4,33.88301]
[1743238260665,3.3271117,1887.5,1887.4,33.88301]
[1743238260973,3.73289921,1887.5,1887.4,34.94981684]
[1743238261812,6.73289921,1887.5,1887.4,28.035]
[1743238262107,12.85770921,1887.5,1887.4,28.035]
[1743238262312,14.67326913,1887.5,1887.4,28.035]
[1743238262457,20.73326913,1887.5,1887.4,28.035]
[1743238265710,18.91770921,1887.5,1887.4,28.035]
[1743238266080,13.61969921,1887.5,1887.4,28.035]
[1743238267217,18.91770921,1887.5,1887.4,28.035]
[1743238269685,5.29865,1887.3,1887.0,1.05528731]
[1743238269911,4.1162117,1887.2,1887.0,1.05528731]
[1743238270617,9.4150717,1887.2,1887.0,1.05528731]
[1743238270817,3.3271117,1887.1,1887.0,1.05528731]
[1743238272901,6.3271117,1887.2,1887.0,1.05528731]
[1743238274611,6.3271117,1887.2,1887.0,6.35461731]
[1743238274990,6.3271117,1887.2,1887.0,11.65387731]
[1743238278258,6.3271117,1887.2,1887.0,6.35454731]
[1743238285484,0.784,1887.1,1887.0,1.60528731]
[1743238287177,6.3271117,1887.2,1887.0,1.60528731]
[1743238287377,6.3271117,1887.2,1887.0,6.90458731]
[1743238294754,6.3271117,1887.2,1887.0,1.05528731]
[1743238295092,2.63153082,1887.1,1886.8,10.59984]
[1743238295292,1.99881965,1887.0,1886.8,10.59984]
[1743238295461,3.0,1887.2,1886.7,1.62200152]
[1743238295653,8.06532965,1886.8,1886.6,28.043]
[1743238295853,4.99881965,1886.7,1886.6,28.043]
[1743238296280,10.29906965,1886.7,1886.6,28.043]
[1743238296473,11.93562762,1886.7,1886.6,28.043]
[1743238296667,12.70212762,1886.7,1886.6,28.043]
[1743238296970,14.03682274,1886.7,1886.2,6.35622376]
[1743238297170,5.30071,1886.6,1886.2,6.35622376]
[1743238297364,3.0,1886.5,1886.2,6.35622376]
[1743238298175,3.33351477,1886.4,1886.1,6.6799]
[1743238298367,3.33351477,1886.4,1885.9,28.044]
[1743238298368,4.10001477,1886.4,1886.0,5.3021]
[1743238298660,4.10001477,1886.4,1886.0,5.30205]
[1743238298984,3.33351477,1886.3,1886.0,5.302]
[1743238299191,4.10001477,1886.4,1886.2,5.30166]
[1743238299356,6.33351477,1886.5,1886.2,0.8281]
[1743238299555,6.33351477,1886.5,1886.3,5.30124]
[1743238300685,3.33351477,1886.4,1886.3,5.30124]
[1743238300888,3.0,1886.5,1886.3,5.3012]
[1743238301182,6.33351477,1886.5,1886.3,5.3012]
[1743238301591,3.0,1886.5,1886.4,6.6792]
[1743238301905,6.33351477,1886.6,1886.5,5.30082]
[1743238302090,3.0,1886.6,1886.5,5.30082]
[1743238302460,7.10001477,1886.6,1886.3,5.30132]
[1743238302789,3.33351477,1886.4,1886.2,5.30166]
[1743238302989,3.33351477,1886.3,1886.2,5.85166]
[1743238303301,3.33351477,1886.3,1886.2,6.92036796]
[1743238304004,3.0,1886.6,1886.3,5.30124]
[1743238304215,3.33351477,1886.5,1886.3,5.30124]
[1743238304365,3.33351477,1886.5,1886.4,5.30107]
[1743238304770,6.33351477,1886.6,1886.5,5.30082]
[1743238305772,3.33351477,1886.8,1886.5,1.692999]
[1743238306110,3.0,1886.9,1886.8,5.29996]
[1743238306812,3.0,1886.9,1886.7,5.30021]
[1743238307311,3.33351477,1886.8,1886.7,5.30021]
[1743238311534,3.33351477,1886.8,1886.6,5.30036]
[1743238311939,3.33351477,1886.8,1886.5,7.73000855]
[1743238312094,3.33351477,1886.6,1886.5,5.30081]
[1743238312290,4.15431477,1886.6,1886.4,28.05]
[1743238312999,4.15431477,1886.6,1886.4,33.3509]
[1743238314562,4.15431477,1886.6,1886.4,33.35109]
[1743238314839,4.15431477,1886.6,1886.4,28.05]
[1743238315237,4.56974625,1886.6,1886.4,28.05]
[1743238316743,4.56974625,1886.6,1886.4,33.35104]
[1743238317717,4.56974625,1886.6,1886.4,28.05]
[1743238317913,3.0,1886.5,1886.4,28.05]
[1743238318118,8.30082,1886.5,1886.4,28.05]
[1743238318352,10.93874663,1886.5,1886.4,28.05]
[1743238318551,16.99874663,1886.5,1886.4,28.05]
[1743238318957,15.0314414,1886.5,1886.4,28.05]
[1743238320113,20.3322614,1886.5,1886.4,28.05]
[1743238320313,20.72859232,1886.5,1886.4,28.05]
[1743238320715,3.0,1886.3,1886.0,5.30221]
[1743238320915,3.33351477,1886.1,1886.0,5.30221]
[1743238322347,3.33351477,1886.1,1885.9,1.85171166]
[1743238322664,0.7609,1886.2,1885.8,33.35458]
[1743238322665,3.33351477,1886.0,1885.8,33.35458]
[1743238322962,3.33351477,1885.9,1885.8,33.35458]
[1743238323168,3.33351477,1885.9,1885.8,34.43641948]
[1743238330760,3.33351477,1886.1,1885.8,34.43641948]
[1743238330948,6.33351477,1886.2,1886.1,5.30171]
[1743238331141,7.26686625,1886.2,1886.1,5.30171]
[1743238331341,6.33351477,1886.2,1886.1,5.30171]
[1743238334270,6.33351477,1886.2,1886.1,6.36352238]
[1743238334860,3.33351477,1886.3,1886.2,6.08511]
[1743238336363,6.33351477,1886.4,1886.3,5.30138]
[1743238336748,9.39351477,1886.5,1886.4,5.3011]
[1743238338974,9.39351477,1886.5,1886.4,5.2873562]
[1743238339971,10.33286625,1886.5,1886.2,5.30166]
[1743238340143,3.33351477,1886.3,1886.2,5.30166]
[1743238341272,3.33351477,1886.3,1886.1,5.30194]
[1743238341438,3.0,1886.4,1886.3,5.30138]
[1743238342254,9.06,1886.5,1886.4,5.3011]
[1743238342472,12.39351477,1886.5,1886.4,5.3011]
[1743238344404,9.06,1886.5,1886.4,5.3011]
[1743238345965,3.0,1886.5,1886.4,5.3011]
[1743238349364,3.0,1886.5,1886.4,5.8511]
[1743238352878,6.33351477,1886.6,1886.5,5.30082]
[1743238353382,3.33351477,1886.6,1886.5,5.30082]
[1743238356517,3.33351477,1886.6,1886.5,5.85082]
[1743238356722,3.33351477,1886.6,1886.5,6.60982]
[1743238361029,6.33351477,1886.7,1886.6,5.85031]
[1743238361900,0.8326,1886.6,1886.5,5.85072]
[1743238362096,0.8326,1886.6,1886.4,5.3011]
[1743238362298,3.33351477,1886.5,1886.4,5.8509]
[1743238362691,3.33351477,1886.5,1886.3,6.35376104]
[1743238362924,3.75012625,1886.5,1886.2,33.35465]
[1743238363227,3.33351477,1886.3,1886.2,33.35465]
[1743238367348,3.33351477,1886.3,1886.2,28.053]
[1743238368421,3.33351477,1886.3,1886.2,33.35466]
[1743238368616,6.33351477,1886.3,1886.2,33.35466]
[1743238369063,6.33351477,1886.3,1886.2,28.053]
[1743238372270,12.39351477,1886.3,1886.2,28.053]
[1743238373691,12.39351477,1886.3,1886.1,5.30173]
[1743238376082,12.39351477,1886.3,1886.0,7.69135274]
[1743238376284,12.39351477,1886.3,1886.0,7.74436937]
[1743238376649,12.39351477,1886.3,1886.0,13.04644937]
[1743238376876,12.39351477,1886.3,1886.0,12.99343274]
[1743238377089,12.39351477,1886.3,1886.0,7.69121274]
[1743238377390,12.39351477,1886.3,1886.0,7.74422938]
[1743238377689,12.39351477,1886.3,1886.0,7.69121274]
[1743238378045,12.39351477,1886.3,1886.0,7.74422943]
[1743238378247,12.39351477,1886.3,1886.0,11.85420237]
[1743238378489,12.39351477,1886.3,1886.0,11.80118568]
[1743238379366,12.39351477,1886.3,1886.0,2.38913274]
[1743238381301,9.06,1886.3,1886.0,7.74435943]
[1743238381597,9.06,1886.3,1886.0,13.04635943]
[1743238381775,9.06,1886.3,1886.0,7.69113274]
[1743238382104,9.06,1886.3,1886.0,7.74414933]
[1743238382304,9.06,1886.3,1886.0,11.32386426]
[1743238382480,9.06,1886.3,1886.0,5.96884767]
[1743238383711,3.0,1886.1,1886.0,1.06853274]
[1743238384205,9.06,1886.1,1885.9,28.053]
[1743238384408,6.33351477,1886.0,1885.9,28.053]
[1743238386668,6.72506518,1886.0,1885.9,28.053]
[1743238386867,6.33351477,1886.0,1885.9,28.053]
[1743238391668,3.0,1886.0,1885.9,28.053]
[1743238391867,3.0,1886.0,1885.9,31.51636962]
[1743238392464,3.0,1886.0,1885.9,36.81886962]
[1743238392669,5.35159141,1886.5,1886.1,0.7958]
[1743238392670,3.33351477,1886.5,1886.1,0.7958]
[1743238392867,9.39351477,1886.6,1886.1,6.15062211]
[1743238393131,3.0,1886.5,1886.3,1.3458]
[1743238394077,6.33351477,1886.5,1886.3,1.3458]
[1743238394505,6.33351477,1886.5,1886.4,1.07689199]
[1743238397666,3.0,1886.5,1886.4,1.62689199]
[1743238397876,3.33351477,1886.7,1886.4,1.07689199]
[1743238398190,3.0,1886.6,1886.4,1.90230017]
[1743238398908,3.0,1886.6,1886.5,0.55]
[1743238399612,3.33351477,1886.6,1886.5,0.55]
[1743238406329,3.0,1886.8,1886.7,0.55]
[1743238406633,3.33351477,1887.1,1886.9,0.55]
[1743238407388,3.0,1887.0,1886.9,0.55]
[1743238407579,3.33351477,1887.1,1886.9,0.55]
[1743238407916,3.33351477,1887.0,1886.9,0.55]
[1743238408321,3.33351477,1887.0,1886.9,1.210296]
[1743238411020,3.33351477,1887.0,1886.9,0.55]
[1743238412327,3.33351477,1887.0,1886.9,1.63363341]
[1743238417526,6.33351477,1887.0,1886.9,1.63363341]
[1743238421447,6.33351477,1887.0,1886.9,29.67863341]
[1743238427442,3.0,1887.0,1886.9,29.67863341]
[1743238427607,3.0,1887.0,1886.9,33.78175675]
[1743238434942,4.99862492,1887.0,1886.9,33.78175675]
[1743238435141,3.0,1887.0,1886.9,39.89244675]
[1743238435643,0.794,1887.6,1887.2,6.65985]
[1743238435953,0.00402052,1887.8,1887.4,0.55]
[1743238435954,1.99862492,1887.5,1887.4,0.55]
[1743238436165,0.00402052,1887.8,1887.4,5.90115584]
[1743238436311,1.99862492,1887.7,1887.6,0.55]
[1743238436711,1.99862492,1887.7,1887.4,0.60297189]
[1743238436908,1.99862492,1887.6,1887.4,0.60297189]
[1743238437147,1.99862492,1887.6,1887.4,0.55]
[1743238437309,1.99862492,1887.6,1887.4,5.90125247]
[1743238437508,1.99862492,1887.6,1887.5,1.14012525]
[1743238437711,1.99862492,1887.7,1887.5,1.14012525]
[1743238438014,1.99862492,1887.6,1887.5,2.17779495]
[1743238439047,3.0,1887.6,1887.5,2.17779495]
[1743238441269,3.3288541,1887.6,1887.5,1.5876697]
[1743238445558,4.0962541,1887.6,1887.5,1.0376697]
[1743238445747,7.0962541,1887.6,1887.5,1.0376697]
[1743238448744,6.3288541,1887.6,1887.5,1.0376697]
[1743238449832,6.3288541,1887.6,1887.5,1.5876697]
[1743238454053,6.3288541,1887.6,1887.5,1.0376697]
[1743238458843,4.99774992,1887.6,1887.5,1.0376697]